fUST/lending_fUST_20250202
["ID","MTS","AMOUNT","RATE_DAILY","PERIOD"]
[351236566,1738465837041,-741.19,0.00016438,2]
[351236567,1738465837051,-500.0,0.00016438,2]
[351236568,1738465837062,-592.08055325,0.00016438,2]
[351236569,1738465837071,-500.0,0.00016438,2]
[351236570,1738465837081,-500.0,0.00016438,2]
[351236571,1738465837092,-1163.72,0.00016438,2]
[351236572,1738465837195,-500.0,0.00016438,2]
[351236573,1738465837206,-500.0,0.00016438,2]
[351236574,1738465837216,-500.0,0.00016438,2]
[351236575,1738465837227,-500.0,0.00016438,2]
[351236576,1738465837237,-1249.49,0.00016438,2]
[351236577,1738465837246,-561.04,0.00016438,2]
[351236578,1738465837255,-500.0,0.00016438,2]
[351236579,1738465837264,-500.0,0.00016438,2]
[351236580,1738465837273,-500.0,0.00016438,2]
[351236581,1738465837283,-500.0,0.00016438,2]
[351236582,1738465837292,-500.0,0.00016438,2]
[351236583,1738465837301,-502.33325075,0.00016438,2]
[351236584,1738465837311,-2087.92,0.00016438,2]
[351236585,1738465837319,-500.0,0.00016438,2]
[351236586,1738465837329,-509.3983537,0.00016438,2]
[351236587,1738465837340,-500.36176155,0.00016473,2]
[351236588,1738465837349,-500.0,0.00016499,2]
[351236589,1738465837358,-500.0,0.00016499,2]
[351236590,1738465837367,-500.0,0.00016499,2]
[351236591,1738465837377,-29214.33986438,0.000165,2]
[351236592,1738465837387,-215.6245758,0.000165,2]
[351236593,1738465837396,-289.226289,0.000165,2]
[351236594,1738465837405,-154.3677431,0.000165,2]
[351236595,1738465837414,-13255.3373504,0.00016518,2]
[351236596,1738465837425,-7721.35690807,0.00016536,2]
[351236597,1738465837440,-1000.0,0.00016536,2]
[351236598,1738465837451,-565.81908867,0.00016536,2]
[351236599,1738465837463,-59551.95255619,0.00016536,2]
[351236600,1738465837474,-2705.63606945,0.00016536,2]
[351236601,1738465837483,-151.0,0.00016536,2]
[351236602,1738465837493,-349.215475,0.00016536,2]
[351236603,1738465837503,-349.215475,0.00016536,2]
[351236604,1738465837514,-151.0,0.00016536,2]
[351236605,1738465837523,-151.0,0.00016536,2]
[351236606,1738465837533,-248.572076,0.00016536,2]
[351236607,1738465837543,-248.572076,0.00016536,2]
[351236608,1738465837552,-383.232304,0.00016536,2]
[351236609,1738465837561,-383.232304,0.00016536,2]
[351236610,1738465837573,-151.0,0.00016536,2]
[351236611,1738465837584,-275.372984,0.00016536,2]
[351236612,1738465837597,-275.372984,0.00016536,2]
[351236613,1738465837607,-158.247209,0.00016536,2]
[351236614,1738465837617,-1652.154892,0.00016536,2]
[351236615,1738465837627,-1652.154892,0.00016536,2]
[351236616,1738465837638,-151.0,0.00016574,2]
[351236617,1738465837648,-151.0,0.00016574,2]
[351236618,1738465837658,-313.474911,0.00016574,2]
[351236619,1738465837668,-313.474911,0.00016574,2]
[351236620,1738465837678,-500.0,0.00016574,2]
[351236621,1738465837687,-500.0,0.00016574,2]
[351236622,1738465837697,-500.0,0.00016574,2]
[351236623,1738465837706,-500.0,0.00016574,2]
[351236624,1738465837715,-500.0,0.00016574,2]
[351236625,1738465837725,-507.67443854,0.00016575,2]
[351236626,1738465837734,-500.0,0.00016575,2]
[351236627,1738465837744,-528.43807909,0.00016575,2]
[351236628,1738465837754,-504.33415084,0.00016575,2]
[351236629,1738465837763,-500.0,0.00016575,2]
[351236630,1738465837772,-500.0,0.00016575,2]
[351236631,1738465837782,-195.25991908,0.00016575,2]
[351236665,1738465838627,-500.0,0.00016438,2]
[351236666,1738465838637,-151.454009,0.00016536,2]
[351236667,1738465838647,-304.74008092,0.00016575,2]
[351236668,1738465838657,-501.13339162,0.00016575,2]
[351236669,1738465838666,-500.0,0.00016575,2]
[351236670,1738465838675,-501.49598283,0.00016575,2]
[351236671,1738465838684,-500.0,0.00016575,2]
[351236672,1738465838693,-500.0,0.00016575,2]
[351236673,1738465838702,-500.0,0.00016575,2]
[351236675,1738465838711,-151.0,0.00016575,2]
[351236676,1738465838720,-500.0,0.00016575,2]
[351236677,1738465838730,-269.03899975,0.00016575,2]
[351236679,1738465838740,-500.0,0.00016575,2]
[351236680,1738465838749,-500.0,0.00016575,2]
[351236681,1738465838759,-497.90156549,0.00016575,2]
[351236682,1738465838771,-10.41864861,0.00016575,2]
[351236683,1738465838780,-228.90953266,0.00016575,2]
[351236684,1738465838790,-500.0,0.00016575,2]
[351236685,1738465838800,-500.0,0.00016575,2]
[351236686,1738465838809,-500.0,0.00016575,2]
[351236687,1738465838818,-504.93357318,0.00016575,2]
[351236688,1738465838828,-500.0,0.00016575,2]
[351236689,1738465838838,-500.0,0.00016575,2]
[351236691,1738465838848,-521.88433194,0.00016575,2]
[351236693,1738465838859,-506.17030345,0.00016575,2]
[351236695,1738465838870,-352.057804,0.00016575,2]
[351236696,1738465838880,-352.057804,0.00016575,2]
[351236697,1738465838890,-520.51699943,0.00016575,2]
[351236699,1738465838899,-500.0,0.00016575,2]
[351236701,1738465838909,-500.0,0.00016575,2]
[351236703,1738465838918,-340.41468055,0.00016575,2]
[351236704,1738465838928,-500.0,0.00016575,2]
[351236705,1738465838937,-502.15231073,0.00016575,2]
[351236706,1738465838947,-151.0,0.00016575,2]
[351236707,1738465838956,-504.85508384,0.00016575,2]
[351236708,1738465838966,-500.0,0.00016575,2]
[351236709,1738465838975,-500.0,0.00016575,2]
[351236710,1738465838985,-512.78461785,0.00016575,2]
[351236711,1738465838995,-419.13905055,0.00016575,2]
[351236712,1738465839008,-80.86094945,0.00016575,2]
[351236713,1738465839017,-500.0,0.00016575,2]
[351236714,1738465839027,-212.25394753,0.00016575,2]
[351236715,1738465839036,-500.0,0.00016575,2]
[351236716,1738465839057,-506.61064069,0.00016575,2]
[351236717,1738465839066,-500.0,0.00016575,2]
[351236718,1738465839077,-500.0,0.00016575,2]
[351236719,1738465839086,-212.5502707,0.00016575,2]
[351236720,1738465839097,-229.00180763,0.00016575,2]
[351236721,1738465839108,-270.99819237,0.00016575,2]
[351236722,1738465839117,-134.85928769,0.00016575,2]
[351236723,1738465839129,-365.14071231,0.00016575,2]
[351236724,1738465839138,-508.92610677,0.00016575,2]
[351236725,1738465839147,-519.05074916,0.00016575,2]
[351236726,1738465839156,-500.0,0.00016575,2]
[351236727,1738465839166,-500.0,0.00016575,2]
[351236728,1738465839176,-500.0,0.00016575,2]
[351236729,1738465839185,-519.95921144,0.00016575,2]
[351236730,1738465839194,-512.45493426,0.00016575,2]
[351236731,1738465839204,-500.0,0.00016575,2]
[351236732,1738465839218,-500.0,0.00016575,2]
[351236733,1738465839228,-505.69501266,0.00016575,2]
[351236734,1738465839237,-500.0,0.00016575,2]
[351236735,1738465839246,-500.0,0.00016575,2]
[351236736,1738465839256,-151.0,0.00016575,2]
[351236737,1738465839266,-151.0,0.00016575,2]
[351236738,1738465839275,-151.0,0.00016575,2]
[351236739,1738465839286,-500.0,0.00016575,2]
[351236740,1738465839296,-151.0,0.00016575,2]
[351236741,1738465839306,-500.0,0.00016575,2]
[351236742,1738465839315,-500.0,0.00016575,2]
[351236743,1738465839325,-500.0,0.00016575,2]
[351236744,1738465839334,-151.0,0.00016575,2]
[351236745,1738465839347,-500.0,0.00016575,2]
[351236746,1738465839356,-151.0,0.00016575,2]
[351236747,1738465839366,-504.83766611,0.00016575,2]
[351236748,1738465839375,-500.0,0.00016575,2]
[351236749,1738465839385,-500.0,0.00016575,2]
[351236750,1738465839396,-2938.06,0.00016575,2]
[351236751,1738465839406,-500.0,0.00016575,2]
[351236752,1738465839416,-500.0,0.00016575,2]
[351236753,1738465839428,-500.0,0.00016575,2]
[351236754,1738465839442,-500.0,0.00016575,2]
[351236755,1738465839455,-500.0,0.00016575,2]
[351236756,1738465839467,-469.84780891,0.00016575,2]
[351236757,1738465839477,-10743.19406719,0.00016575,2]
[351236758,1738465839492,-2099.13593281,0.00016575,2]
[351236759,1738465839503,-504.90675599,0.00016575,2]
[351236760,1738465839514,-500.0,0.00016575,2]
[351236761,1738465839525,-500.0,0.00016575,2]
[351236762,1738465839535,-508.60273718,0.00016575,2]
[351236763,1738465839545,-500.0,0.00016575,2]
[351236764,1738465839554,-391.21232884,0.00016575,2]
[351236765,1738465839564,-343.5688363,0.00016575,2]
[351236766,1738465839574,-500.0,0.00016575,2]
[351236767,1738465839583,-500.0,0.00016575,2]
[351236768,1738465839596,-299.93599881,0.00016575,2]
[351236778,1738465840725,-714.78080813,0.00016438,2]
[351236779,1738465840778,-1978.43919187,0.00016438,2]
[351236780,1738465840791,-200.06400119,0.00016575,2]
[351236781,1738465840801,-349.215475,0.00016575,2]
[351236782,1738465840811,-505.55913376,0.00016575,2]
[351236783,1738465840820,-349.215475,0.00016575,2]
[351236784,1738465840829,-506.11104381,0.00016575,2]
[351236785,1738465840838,-359.93911301,0.00016575,2]
[351236786,1738465840851,-504.38572874,0.00016575,2]
[351236787,1738465840860,-171.438065,0.00016575,2]
[351236788,1738465840870,-500.0,0.00016575,2]
[351236789,1738465840879,-290.66077275,0.00016575,2]
[351236790,1738465840888,-500.0,0.00016575,2]
[351236791,1738465840897,-500.0,0.00016575,2]
[351236792,1738465840907,-313.474911,0.00016575,2]
[351236793,1738465840916,-500.0,0.00016575,2]
[351236794,1738465840925,-2119.26,0.00016575,2]
[351236795,1738465840934,-313.474911,0.00016575,2]
[351236796,1738465840944,-500.0,0.00016575,2]
[351236797,1738465840955,-505.63225586,0.00016575,2]
[351236798,1738465840964,-528.66451907,0.00016575,2]
[351236799,1738465840973,-537.43171733,0.00016575,2]
[351236800,1738465840982,-500.0,0.00016575,2]
[351236801,1738465840991,-151.0,0.00016575,2]
[351236802,1738465841098,-500.0,0.00016575,2]
[351236803,1738465841107,-1643.35,0.00016575,2]
[351236804,1738465841117,-500.0,0.00016575,2]
[351236805,1738465841126,-706.3,0.00016575,2]
[351236806,1738465841136,-500.0,0.00016575,2]
[351236807,1738465841145,-247.92626537,0.00016575,2]
[351236808,1738465841155,-248.572076,0.00016575,2]
[351236809,1738465841163,-500.0,0.00016575,2]
[351236810,1738465841173,-565.85,0.00016575,2]
[351236811,1738465841183,-248.572076,0.00016575,2]
[351236812,1738465841192,-510.75453175,0.00016575,2]
[351236813,1738465841202,-442.70559337,0.00016575,2]
[351236814,1738465841211,-500.0,0.00016575,2]
[351236815,1738465841220,-3561.73,0.00016575,2]
[351236816,1738465841230,-500.0,0.00016575,2]
[351236817,1738465841239,-500.0,0.00016575,2]
[351236818,1738465841248,-500.0,0.00016575,2]
[351236819,1738465841258,-500.0,0.00016575,2]
[351236820,1738465841267,-383.232304,0.00016575,2]
[351236821,1738465841277,-500.0,0.00016575,2]
[351236822,1738465841287,-383.232304,0.00016575,2]
[351236823,1738465841296,-500.0,0.00016575,2]
[351236824,1738465841306,-500.0,0.00016575,2]
[351236825,1738465841315,-379.02861531,0.00016575,2]
[351236826,1738465841325,-500.0,0.00016575,2]
[351236827,1738465841334,-500.0,0.00016575,2]
[351236828,1738465841346,-500.0,0.00016575,2]
[351236829,1738465841355,-500.0,0.00016575,2]
[351236830,1738465841365,-500.0,0.00016575,2]
[351236831,1738465841375,-500.0,0.00016575,2]
[351236832,1738465841384,-500.0,0.00016575,2]
[351236833,1738465841394,-500.0,0.00016575,2]
[351236834,1738465841403,-504.03411681,0.00016575,2]
[351236835,1738465841413,-1197.41,0.00016575,2]
[351236836,1738465841423,-500.0,0.00016575,2]
[351236837,1738465841433,-207.527653,0.00016575,2]
[351236838,1738465841445,-500.0,0.00016575,2]
[351236839,1738465841455,-1484.52,0.00016575,2]
[351236840,1738465841465,-275.372984,0.00016575,2]
[351236841,1738465841474,-275.372984,0.00016575,2]
[351236842,1738465841486,-500.0,0.00016575,2]
[351236843,1738465841497,-500.0,0.00016575,2]
[351236844,1738465841508,-500.0,0.00016575,2]
[351236845,1738465841518,-500.0,0.00016575,2]
[351236846,1738465841528,-500.0,0.00016575,2]
[351236847,1738465841537,-3431.09,0.00016575,2]
[351236848,1738465841547,-500.0,0.00016575,2]
[351236849,1738465841558,-500.0,0.00016575,2]
[351236850,1738465841568,-500.0,0.00016575,2]
[351236851,1738465841578,-504.77007568,0.00016575,2]
[351236852,1738465841588,-500.0,0.00016575,2]
[351236853,1738465841600,-500.0,0.00016575,2]
[351236854,1738465841610,-500.0,0.00016575,2]
[351236855,1738465841620,-500.0,0.00016575,2]
[351236856,1738465841630,-510.3033261,0.00016575,2]
[351236857,1738465841639,-500.0,0.00016575,2]
[351236858,1738465841649,-835.06,0.00016575,2]
[351236859,1738465841658,-500.0,0.00016575,2]
[351236860,1738465841668,-741.19,0.00016575,2]
[351236861,1738465841677,-511.56541307,0.00016575,2]
[351236862,1738465841687,-500.0,0.00016575,2]
[351236863,1738465841696,-500.0,0.00016575,2]
[351236864,1738465841706,-1163.72,0.00016575,2]
[351236865,1738465841716,-1652.154892,0.00016575,2]
[351236866,1738465841726,-500.0,0.00016575,2]
[351236867,1738465841735,-500.0,0.00016575,2]
[351236868,1738465841745,-1652.154892,0.00016575,2]
[351236869,1738465841755,-553.90812158,0.00016575,2]
[351236870,1738465841764,-503.12153926,0.00016575,2]
[351236871,1738465841774,-561.04,0.00016575,2]
[351236872,1738465841783,-508.70932523,0.00016575,2]
[351236873,1738465841792,-1249.49,0.00016575,2]
[351236874,1738465841802,-500.0,0.00016575,2]
[351236875,1738465841811,-424.58691864,0.00016575,2]
[351236876,1738465841821,-514.47684291,0.00016575,2]
[351236877,1738465841830,-500.0,0.00016575,2]
[351236878,1738465841839,-2087.92,0.00016575,2]
[351236879,1738465841851,-500.0,0.00016575,2]
[351236880,1738465841861,-513.18270759,0.00016575,2]
[351236881,1738465841871,-2693.22,0.00016575,2]
[351236882,1738465841880,-362.8664068,0.000166,2]
[351236883,1738465841891,-215.6245758,0.000166,2]
[351236884,1738465841901,-154.4475723,0.000166,2]
[351236885,1738465841910,-154.4475723,0.000166,2]
[351236886,1738465841920,-215.6245758,0.000166,2]
[351236887,1738465841930,-215.6245758,0.000166,2]
[351236888,1738465841939,-154.4475723,0.000166,2]
[351236889,1738465841949,-154.4475723,0.000166,2]
[351236890,1738465841958,-215.6245758,0.000166,2]
[351236891,1738465841967,-215.6245758,0.000166,2]
[351236892,1738465841978,-154.4475723,0.000166,2]
[351236893,1738465841988,-215.6245758,0.000166,2]
[351236894,1738465841998,-154.4475723,0.000166,2]
[351236895,1738465842009,-215.6245758,0.000166,2]
[351236896,1738465842019,-154.0412511,0.000166,2]
[351236897,1738465842029,-215.6245758,0.000166,2]
[351236898,1738465842039,-503.0758264,0.00016636,2]
[351236899,1738465842049,-387.25573816,0.00016641,2]
[351236900,1738465842059,-507.01046882,0.00016712,2]
[351236901,1738465842070,-240.37012297,0.00016712,2]
[351236902,1738465842080,-500.0,0.00016712,2]
[351236903,1738465842089,-617.07767842,0.00016712,2]
[351236904,1738465842103,-516.20146716,0.00016712,2]
[351236905,1738465842113,-500.0,0.00016712,2]
[351236906,1738465842123,-155.898022,0.00016712,2]
[351236907,1738465842133,-500.0,0.00016712,2]
[351236908,1738465842143,-500.0,0.00016712,2]
[351236909,1738465842153,-500.0,0.00016712,2]
[351236910,1738465842163,-414.61023791,0.00016712,2]
[351236911,1738465842172,-506.27543063,0.00016712,2]
[351236912,1738465842181,-260.80404169,0.00016712,2]
[351236913,1738465842191,-500.0,0.00016712,2]
[351236914,1738465842201,-649.676772,0.00016712,2]
[351236915,1738465842211,-649.676772,0.00016712,2]
[351236916,1738465842220,-500.0,0.00016712,2]
[351236917,1738465842230,-649.676772,0.00016712,2]
[351236918,1738465842240,-649.676772,0.00016712,2]
[351236919,1738465842250,-151.0,0.00016712,2]
[351236920,1738465842260,-151.0,0.00016712,2]
[351236921,1738465842269,-352.057804,0.00016712,2]
[351236922,1738465842279,-352.057804,0.00016712,2]
[351236923,1738465842288,-500.0,0.00016712,2]
[351236924,1738465842298,-500.0,0.00016712,2]
[351236925,1738465842308,-500.0,0.00016712,2]
[351236926,1738465842318,-151.0,0.00016712,2]
[351236927,1738465842328,-500.0,0.00016712,2]
[351236928,1738465842337,-500.0,0.00016712,2]
[351236929,1738465842349,-161.77894428,0.00016712,2]
[351236930,1738465842359,-184.63178003,0.00016712,2]
[351236931,1738465842369,-454.69111728,0.00016712,2]
[351236932,1738465842378,-151.0,0.00016712,2]
[351236933,1738465842387,-151.0,0.00016712,2]
[351236934,1738465842396,-301.79986362,0.00016712,2]
[351236935,1738465842405,-151.0,0.00016712,2]
[351236936,1738465842415,-500.0,0.00016712,2]
[351236937,1738465842427,-151.0,0.00016712,2]
[351236938,1738465842439,-151.0,0.00016712,2]
[351236939,1738465842449,-526.94318662,0.00016712,2]
[351236940,1738465842458,-151.0,0.00016712,2]
[351236941,1738465842467,-447.42440913,0.00016712,2]
[351236942,1738465842478,-521.17527083,0.00016712,2]
[351236943,1738465842488,-523.24937988,0.00016712,2]
[351236944,1738465842498,-500.0,0.00016712,2]
[351236945,1738465842509,-508.33754741,0.00016712,2]
[351236946,1738465842518,-515.26899015,0.00016712,2]
[351236947,1738465842527,-500.0,0.00016712,2]
[351236948,1738465842536,-157.427901,0.00016712,2]
[351236949,1738465842545,-151.0,0.00016712,2]
[351236950,1738465842555,-151.0,0.00016712,2]
[351236951,1738465842565,-500.0,0.00016712,2]
[351236952,1738465842575,-151.0,0.00016712,2]
[351236953,1738465842585,-568.48719129,0.00016712,2]
[351236954,1738465842596,-500.0,0.00016712,2]
[351236955,1738465842606,-500.0,0.00016712,2]
[351236956,1738465842615,-151.0,0.00016712,2]
[351236957,1738465842625,-616.14830888,0.00016712,2]
[351236958,1738465842635,-151.0,0.00016712,2]
[351236959,1738465842645,-505.93103383,0.00016712,2]
[351236960,1738465842655,-500.0,0.00016712,2]
[351236961,1738465842665,-500.0,0.00016712,2]
[351236962,1738465842675,-500.0,0.00016712,2]
[351236963,1738465842684,-353.2559523,0.00016712,2]
[351236964,1738465842694,-500.0,0.00016712,2]
[351236965,1738465842703,-500.0,0.00016712,2]
[351236966,1738465842713,-684.80544835,0.00016712,2]
[351236967,1738465842727,-330.154,0.00016712,2]
[351236984,1738465843660,-11827.37055165,0.00016712,2]
[351236985,1738465843670,-500.0,0.00016712,2]
[351236986,1738465843680,-510.7325318,0.00016712,2]
[351236987,1738465843689,-500.0,0.00016712,2]
[351236988,1738465843699,-500.0,0.00016712,2]
[351236989,1738465843708,-500.0,0.00016712,2]
[351236990,1738465843718,-500.0,0.00016712,2]
[351236991,1738465843728,-349.215475,0.00016712,2]
[351236992,1738465843737,-349.215475,0.00016712,2]
[351236993,1738465843747,-500.0,0.00016712,2]
[351236994,1738465843758,-5.06596654,0.00016712,2]
[351236995,1738465843798,-400.88,0.00016712,2]
[351236996,1738465843810,-174.18456214,0.00016712,2]
[351236997,1738465843820,-500.0,0.00016712,2]
[351236998,1738465843829,-313.474911,0.00016712,2]
[351236999,1738465843839,-524.57921838,0.00016712,2]
[351237000,1738465843851,-1759.10523128,0.00016712,2]
[351237020,1738465846859,-360.15476872,0.00016712,2]
[351237021,1738465846869,-313.474911,0.00016712,2]
[351237022,1738465846879,-624.81454648,0.00016712,2]
[351237023,1738465846888,-531.78620449,0.00016712,2]
[351237024,1738465846897,-151.0,0.00016712,2]
[351237025,1738465846906,-500.0,0.00016712,2]
[351237026,1738465846916,-1643.35,0.00016712,2]
[351237027,1738465846925,-500.0,0.00016712,2]
[351237028,1738465846935,-706.3,0.00016712,2]
[351237029,1738465846944,-500.0,0.00016712,2]
[351237030,1738465846954,-248.572076,0.00016712,2]
[351237031,1738465847053,-515.27094872,0.00016712,2]
[351237032,1738465847077,-565.85,0.00016712,2]
[351237033,1738465847088,-248.572076,0.00016712,2]
[351237034,1738465847100,-518.9854095,0.00016712,2]
[351237035,1738465847110,-3561.73,0.00016712,2]
[351237036,1738465847120,-535.49675456,0.00016712,2]
[351237037,1738465847130,-500.0,0.00016712,2]
[351237038,1738465847140,-500.0,0.00016712,2]
[351237039,1738465847150,-500.0,0.00016712,2]
[351237040,1738465847160,-383.232304,0.00016712,2]
[351237041,1738465847170,-383.232304,0.00016712,2]
[351237042,1738465847181,-500.0,0.00016712,2]
[351237043,1738465847190,-383.232304,0.00016712,2]
[351237044,1738465847200,-383.232304,0.00016712,2]
[351237045,1738465847209,-438.87652721,0.00016712,2]
[351237046,1738465847219,-500.0,0.00016712,2]
[351237047,1738465847229,-500.0,0.00016712,2]
[351237048,1738465847239,-513.82456705,0.00016712,2]
[351237049,1738465847249,-500.0,0.00016712,2]
[351237050,1738465847258,-500.0,0.00016712,2]
[351237051,1738465847267,-500.0,0.00016712,2]
[351237052,1738465847276,-294.82760397,0.00016712,2]
[351237053,1738465847286,-500.0,0.00016712,2]
[351237054,1738465847295,-1197.41,0.00016712,2]
[351237055,1738465847304,-500.0,0.00016712,2]
[351237056,1738465847313,-1484.52,0.00016712,2]
[351237057,1738465847323,-275.372984,0.00016712,2]
[351237058,1738465847332,-275.372984,0.00016712,2]
[351237059,1738465847341,-275.372984,0.00016712,2]
[351237060,1738465847354,-275.372984,0.00016712,2]
[351237061,1738465847363,-500.0,0.00016712,2]
[351237062,1738465847373,-500.0,0.00016712,2]
[351237063,1738465847383,-500.0,0.00016712,2]
[351237064,1738465847393,-500.0,0.00016712,2]
[351237065,1738465847403,-3431.09,0.00016712,2]
[351237066,1738465847414,-500.0,0.00016712,2]
[351237067,1738465847429,-500.0,0.00016712,2]
[351237068,1738465847439,-500.0,0.00016712,2]
[351237069,1738465847448,-500.0,0.00016712,2]
[351237070,1738465847459,-500.0,0.00016712,2]
[351237071,1738465847470,-500.0,0.00016712,2]
[351237072,1738465847480,-152.84802516,0.00016712,2]
[351237073,1738465847491,-412.2229291,0.00016712,2]
[351237074,1738465847503,-334.44753204,0.00016712,2]
[351237075,1738466169038,578.06,0.00020453,120]
[351237077,1738466172783,177.000013,0.00013973,2]
[351237078,1738466403494,913.71953834,0.00015011,2]
[351237079,1738466412207,4871.99697579,0.00015011,2]
[351237097,1738466800914,316.925928,0.00014933,2]
[351237253,1738467033368,-166.0,0.00015068,2]
[351237254,1738467033384,-300.0,0.0001512,2]
[351237255,1738467033394,-9976.17754575,0.00015121,2]
[351237256,1738467033407,-327.99996,0.00015121,2]
[351237257,1738467033419,-348.263794,0.00015121,2]
[351237258,1738467033752,-2432.18006648,0.00015121,2]
[351237259,1738467033909,-3050.98246387,0.00015121,2]
[351237260,1738467033920,-305.30498639,0.00015393,2]
[351237261,1738467033930,-10350.37793441,0.00015488,2]
[351237262,1738467033973,-3750.225,0.00015488,2]
[351237263,1738467033986,-418.20017609,0.00015488,2]
[351237264,1738467033999,-8019.1904661,0.00015488,2]
[351237265,1738467034009,-276.7356286,0.00015493,2]
[351237266,1738467034019,-2310.63182296,0.00015531,2]
[351237267,1738467034032,-1991.82649862,0.00015531,2]
[351237291,1738467037769,-3380.79713596,0.00015531,2]
[351237293,1738467037781,-7361.23181088,0.00015531,2]
[351237295,1738467037793,-3264.64440354,0.00015531,2]
[351237296,1738467037805,-6590.86832804,0.00015531,2]
[351237298,1738467037815,-305.30498633,0.00015751,2]
[351237300,1738467037824,-305.30498633,0.00016109,2]
[351237302,1738467037834,-310.2815981,0.000162,2]
[351237304,1738467037844,-500.0,0.00016437,2]
[351237306,1738467037855,-526.35462843,0.00016437,2]
[351237308,1738467037865,-317.42768299,0.00016437,2]
[351237310,1738467037875,-508.53894772,0.00016438,2]
[351237312,1738467037888,-500.0,0.00016438,2]
[351237314,1738467037899,-526.81972284,0.00016438,2]
[351237315,1738467037909,-500.0,0.00016438,2]
[351237317,1738467037918,-532.49561646,0.00016438,2]
[351237318,1738467037931,-280.15078985,0.00016438,2]
[351237319,1738467037940,-500.0,0.00016438,2]
[351237320,1738467037950,-221.62929628,0.00016438,2]
[351237321,1738467037960,-500.0,0.00016438,2]
[351237322,1738467037974,-500.0,0.00016438,2]
[351237323,1738467037983,-500.0,0.00016438,2]
[351237324,1738467037993,-500.0,0.00016438,2]
[351237325,1738467038002,-500.0,0.00016438,2]
[351237326,1738467038011,-500.0,0.00016438,2]
[351237327,1738467038021,-204.87429057,0.00016438,2]
[351237328,1738467038030,-500.0,0.00016438,2]
[351237329,1738467038039,-428.77274551,0.00016438,2]
[351237330,1738467038049,-500.0,0.00016438,2]
[351237331,1738467038058,-500.0,0.00016438,2]
[351237332,1738467038067,-500.0,0.00016438,2]
[351237333,1738467038076,-500.0,0.00016438,2]
[351237334,1738467038086,-500.0,0.00016438,2]
[351237335,1738467038095,-500.0,0.00016438,2]
[351237336,1738467038104,-535.12,0.00016438,2]
[351237337,1738467038113,-502.65322156,0.00016438,2]
[351237338,1738467038122,-1854.35,0.00016438,2]
[351237339,1738467038133,-500.0,0.00016438,2]
[351237340,1738467038142,-3178.87,0.00016438,2]
[351237341,1738467038151,-618.02,0.00016438,2]
[351237342,1738467038160,-500.0,0.00016438,2]
[351237343,1738467038169,-500.0,0.00016438,2]
[351237344,1738467038179,-500.0,0.00016438,2]
[351237345,1738467038188,-500.0,0.00016438,2]
[351237346,1738467038198,-500.0,0.00016438,2]
[351237347,1738467038207,-1552.21,0.00016438,2]
[351237348,1738467038216,-500.0,0.00016438,2]
[351237349,1738467038225,-500.0,0.00016438,2]
[351237350,1738467038234,-500.0,0.00016438,2]
[351237351,1738467038243,-500.0,0.00016438,2]
[351237352,1738467038252,-500.0,0.00016438,2]
[351237353,1738467038261,-500.0,0.00016438,2]
[351237354,1738467038270,-500.0,0.00016438,2]
[351237355,1738467038279,-500.0,0.00016438,2]
[351237356,1738467038289,-500.0,0.00016438,2]
[351237357,1738467038298,-500.0,0.00016438,2]
[351237358,1738467038307,-500.0,0.00016438,2]